Cogmind - Beta 17 @@@ ROGUE MODE // 2026.07.30 @ 01:40:05 Player: 4R-ZE3 Result: Defending 0bPrime! Performance ------------- Evolutions (8) 4000 Regions Visited (12) 2400 Robots Destroyed (49) 245 Value Destroyed (1868) 1868 Prototype IDs (14) 280 Alien Tech Used (1) 200 Bonus (18074) 18074 TOTAL SCORE: 27067 Bonus ------- Registered with UFD 300 Met Optimus in HQ 500 Met Optimus at Protoforge 1000 Executed Drillbomb Mission 10000 Optimus Survived to 0b1 3000 Win 3000 Win Speed 274 Cogmind --------- Core Integrity 1241/1450 Matter 300/300 Energy 370/370 System Corruption 8% Temperature Cool (0) Movement Flying (23) Location 0bPrime Parts ------- > --- POWER (3) -------- Light Quantum Reactor Light Quantum Reactor (fused) Light Quantum Reactor > --- PROPULSION (10) -- Cooled Field Propulsion Drive Impulse Thruster Array Impulse Thruster Array Impulse Thruster Array Impulse Thruster Array Cooled Q-thruster > --- UTILITY (8) ------ Advanced Heat Sink Medium Storage Unit Advanced Trap Scanner Advanced Sensor Array Advanced Signal Interpreter Experimental Core Analyzer Makeshift Medium Armor Plating Graphene Brace > --- WEAPON (2) ------- Sigix Broadsword > --- INVENTORY (10) --- UFD Drillbomb Peak State ------------ > --- POWER ------------ Light Antimatter Reactor Light Quantum Reactor Improved Quantum Reactor > --- PROPULSION ------- Cooled Field Propulsion Drive Cooled Field Propulsion Drive Cooled Field Propulsion Drive Impulse Thruster Array Impulse Thruster Array Impulse Thruster Array Cooled Q-thruster > --- UTILITY ---------- Medium Storage Unit Advanced Trap Scanner Advanced Sensor Array Advanced Signal Interpreter Experimental Core Analyzer Advanced Reaction Control System Advanced Phase Shifter Graphene Brace > --- WEAPON ----------- Sigix Broadsword > --- INVENTORY -------- UFD Drillbomb [Rating: 199] Favorites ----------- Power Light Quantum Reactor Engine Ion Engine Power Core Light Nuclear Core Reactor Light Quantum Reactor Propulsion Cooled Field Propulsion Drive Treads Light Treads Wheel Wheel Hover Unit Improved Antigrav System Flight Unit Cooled Field Propulsion Drive Utility Advanced Heat Sink Device Advanced Heat Sink Storage Large Storage Unit Processor Advanced Signal Interpreter Hackware Improved Hacking Suite Protection Makeshift Light Armor Plating Weapon Light Assault Rifle Energy Gun Backup Laser III Ballistic Gun Light Assault Rifle Launcher Grenade Launcher Slashing Weapon Sigix Broadsword Piercing Weapon Lance Build | -11 -10 -10 -7 -5 -4 -4 -4 -3 -3 -2 -2 -2 ------- Run | Yrd Mat Sub Scr Fac Fac Was Fac Res Arm Res Qua Frg Slots Evolved 16 | . . . . 10 2 . . 2 . 2 . . Power 2 | . . . . 1 . . . . . 1 . . Propulsion 8 | . . . . 5 1 . . 1 . 1 . . Utility 6 | . . . . 4 1 . . 1 . . . . Weapon . | . . . . . . . . . . . . . Parts Attached 103 | 6 5 1 6 12 6 . 14 4 3 22 4 20 Power 21 | 1 1 . 1 2 . . 2 1 1 6 1 5 Engine 3 | 1 1 . . 1 . . . . . . . . Core 3 | . . . 1 1 . . 1 . . . . . Reactor 15 | . . . . . . . 1 1 1 6 1 5 Propulsion 38 | 2 1 1 3 3 5 . 3 2 . 11 1 6 Treads 7 | 2 1 1 1 2 . . . . . . . . Leg . | . . . . . . . . . . . . . Wheel 2 | . . . 2 . . . . . . . . . Hover 2 | . . . . . . . 2 . . . . . Flight 27 | . . . . 1 5 . 1 2 . 11 1 6 Utility 35 | 1 2 . 2 5 1 . 7 1 2 4 1 9 Device 17 | . . . . 2 . . 5 . 1 3 1 5 Storage 3 | 1 1 . . . . . . . . 1 . . Processor 6 | . . . . 1 . . 1 . 1 . . 3 Hackware 2 | . . . . . 1 . . 1 . . . . Protection 7 | . 1 . 2 2 . . 1 . . . . 1 Artifact . | . . . . . . . . . . . . . Weapon 9 | 2 1 . . 2 . . 2 . . 1 1 . Energy Gun 1 | . . . . . . . 1 . . . . . Energy Cannon . | . . . . . . . . . . . . . Ballistic Gun 4 | 2 . . . 2 . . . . . . . . Ballistic Cannon . | . . . . . . . . . . . . . Launcher 1 | . 1 . . . . . . . . . . . Special Weapon . | . . . . . . . . . . . . . Impact Weapon . | . . . . . . . . . . . . . Slashing Weapon 1 | . . . . . . . . . . . 1 . Piercing Weapon 2 | . . . . . . . 1 . . 1 . . Special Melee Weapon . | . . . . . . . . . . . . . Unidentified Prototypes 9 | . . . . 1 . . . . 2 1 1 4 Parts Lost 34 | . 4 . . 4 4 . . 4 1 9 . 8 Power 5 | . 1 . . . . . . . . 2 . 2 Propulsion 14 | . 1 . . 1 2 . . 3 1 4 . 2 Utility 10 | . 1 . . 1 1 . . . . 3 . 4 Weapon 5 | . 1 . . 2 1 . . 1 . . . . Highest Loss Streak 4 | . 2 . . 2 4 . . 4 1 4 . 2 To Critical Strikes . | . . . . . . . . . . . . . Average Backups 8 | 2 8 9 14 13 11 4 4 4 3 7 9 1 Power . | . 1 2 1 1 1 1 . . . . . . Propulsion 2 | 1 3 4 5 4 2 . . . . 3 1 . Utility 3 | . 1 2 5 6 6 3 3 3 3 4 6 . Weapon . | . 1 1 1 1 1 . . . . . . . Tool/Special . | . . . . . . . . . . . . . Unused Backups 22 | . . . 7 1 6 . 2 . . 1 . 5 Power 3 | . . . 2 . 1 . . . . . . . Propulsion 2 | . . . 2 . . . . . . . . . Utility 12 | . . . . . 4 . 2 . . 1 . 5 Weapon 5 | . . . 3 1 1 . . . . . . . Tool/Special . | . . . . . . . . . . . . . Average Slot Usage (%) 83 | . 94 84 98 63 61 47 73 81 71 81 90 78 Engine 4 | . 13 14 7 3 1 . . . . . . . Core 2 | . . . 6 5 5 5 . . . . . . Reactor 4 | . . . . . . . 4 8 4 9 13 10 Treads 9 | . 27 28 18 6 2 . . . . . . . Wheel 2 | . . . 9 7 1 . . . . . . . Flight 15 | . . . . . 19 21 23 22 19 32 39 30 Device 10 | . . . . 7 10 5 19 18 19 16 20 22 Storage 8 | . 20 14 14 5 4 . . . . 2 4 4 Processor 3 | . . . . 2 5 5 4 4 5 8 8 4 Hackware 1 | . . . . . . 5 5 8 7 3 . . Protection 5 | . 3 . 12 9 9 5 5 4 4 1 . . Ballistic Gun 7 | . 26 14 14 7 2 . . . . . . . Launcher 3 | . . 13 14 1 . . . . . . . . Peak Build Rating 199 | 6 8 6 16 52 54 38 103 111 98 157 188 199 Average Rating 79 | 5 7 6 13 40 45 38 80 107 92 140 168 179 On Entrance 58 | . 6 5 6 16 52 38 38 90 84 90 150 188 Avg Prop Armor Cover (%) 8 | . . . . 6 16 . 7 7 10 8 . . Naked Turns . | . . . . . . . . . . . . . Heaviest Build 80 | 10 30 29 33 63 52 12 36 33 18 71 74 80 Greatest Support 88 | 40 40 40 40 50 25 20 38 36 29 88 87 87 Greatest Overweight (x) 10 | . 1 . 1 10 5 . 1 . . . 1 1 Average Overweight (x) . | . . . . 2 1 . . . . . . . Largest Inventory Capacity 15 | 8 15 15 15 15 15 5 5 5 5 10 10 10 Average Capacity 11 | 7 14 15 15 15 13 5 5 5 5 8 10 10 Most Carried 15 | 5 11 10 15 15 14 5 5 5 5 10 10 10 Average Carried 9 | 2 8 9 14 14 12 5 4 4 4 7 9 6 Final Capacity 15 | 8 15 15 15 15 5 5 5 5 5 10 10 10 Final Carried 15 | 5 11 9 15 14 5 5 5 5 5 7 10 10 Class Distribution -------------------- 47% | Mutant 16% | Scavenger-Scout 12% | Scout 7% | Ninja 6% | Sprinter 5% | Scavenger-Mutant Dominant Class ---------------- Mutant | -10/Materials Mutant | -10/Subcaves Mutant | -7/Scraptown Mutant | -5/Factory Mutant | -4/Factory Mutant | -4/Waste Sprinter | -4/Factory Hacker-Ninja | -3/Research Scout | -3/Armory Ninja | -2/Research Scout | -2/Quarantine Scavenger-Scout | -2/Protoforge Resources | -11 -10 -10 -7 -5 -4 -4 -4 -3 -3 -2 -2 -2 ----------- Run | Yrd Mat Sub Scr Fac Fac Was Fac Res Arm Res Qua Frg Matter Collected 1928 | 246 207 . 193 293 4 . 137 33 . 385 116 314 Remotely . | . . . . . . . . . . . . . Salvage Created 2070 | 112 552 68 . 419 . . 237 . . 125 105 452 Parts 127 | 8 44 10 . 13 . . 7 . . 8 10 27 Haulers Intercepted 2 | . 2 . . . . . . . . . . . Recyclers Shooed 2 | 1 . . . . . . 1 . . . . . Parts Field Recycled . | . . . . . . . . . . . . . Retrieved Matter . | . . . . . . . . . . . . . Parts Self-Destructed 3 | . . 3 . . . . . . . . . . Prevented . | . . . . . . . . . . . . . Parts Restored . | . . . . . . . . . . . . . Kills | -11 -10 -10 -7 -5 -4 -4 -4 -3 -3 -2 -2 -2 ------- Run | Yrd Mat Sub Scr Fac Fac Was Fac Res Arm Res Qua Frg Combat Hostiles Destroyed 31 | . 12 5 . 7 . . . . . 1 . 6 Melee 7 | . . . . . . . . . . 1 . 6 Guns 15 | . 7 1 . 7 . . . . . . . . AOE 9 | . 5 4 . . . . . . . . . . Classes Destroyed 15 | 2 4 1 . 2 . . 1 . . 2 1 2 Worker 1 | . . . . . . . 1 . . . . . Builder 2 | . 2 . . . . . . . . . . . Tunneler 2 | 2 . . . . . . . . . . . . Hauler 2 | . 2 . . . . . . . . . . . Recycler 3 | 1 . . . . . . 2 . . . . . Operator 4 | . . . . . . . . . . 1 1 2 Drone 2 | . . . . . . . . . . . . 2 Watcher 3 | . 1 . . . . . . . . 1 . 1 Swarmer 4 | . . 4 . . . . . . . . . . Grunt 17 | . 12 1 . 4 . . . . . . . . Researcher 1 | . . . . . . . . . . . 1 . Sentry 1 | . . . . 1 . . . . . . . . Hunter 2 | . . . . 2 . . . . . . . . Programmer 2 | . . . . . . . . . . 1 . 1 Hotshot 1 | . . . . . . . . . . . . 1 Executioner 2 | . . . . . . . . . . . . 2 Best Kill Streak 9 | 2 9 4 . 4 . . 1 . . 1 1 2 Combat Bots Only 5 | . 5 4 . 4 . . . . . 1 . 2 Max Kills in Single Turn 3 | 1 2 3 . 1 . . 1 . . 1 1 1 Gunslinging . | . . . . . . . . . . . . . Exploded 3 | . 2 3 . . . . . . . . . . Melee 1 | . . . . . . . . . . 1 . 1 Uniques/NPCs Destroyed . | . . . . . . . . . . . . . Combat | -11 -10 -10 -7 -5 -4 -4 -4 -3 -3 -2 -2 -2 -------- Run | Yrd Mat Sub Scr Fac Fac Was Fac Res Arm Res Qua Frg Hostile Shots Fired 621 | . 58 28 . 110 16 . 8 10 12 125 25 229 Missed 281 | . 15 8 . 22 4 . 4 5 6 63 12 142 Hits 340 | . 43 20 . 88 12 . 4 5 6 62 13 87 Melee 4 | . . . . . . . . 3 . . . 1 Projectile 336 | . 43 20 . 88 12 . 4 2 6 62 13 86 Critical Strikes 12 | . . . . . . . . 2 . 4 . 6 Actively Blocked 6 | . . . . . . . . . . . . 6 Damage Taken 7150 | . 718 227 . 1440 269 . 76 378 153 1381 259 2249 Core 666 | . 116 62 . 129 83 . . 67 . 90 . 119 Absorbed by Shields 102 | . . . . . . . 5 . . 63 . 34 Redirected to Shielding 51 | . 51 . . . . . . . . . . . Ignored by Resistances 6 | . . . . 6 . . . . . . . . Regen/Repaired (Parts) 1314 | . . . . . . . . . . . 4 1310 Core Remaining (%) 81 | 100 . . 28 87 . . 92 . 94 . . 85 Volleys Fired 112 | 10 47 11 . 40 . . 4 . . . . . Largest 2 | 2 2 2 . 2 . . 1 . . . . . Hottest 81 | 40 50 50 . 63 . . 81 . . . . . Shots Fired 206 | 20 94 19 . 68 . . 5 . . . . . Gun 191 | 20 87 11 . 68 . . 5 . . . . . Cannon . | . . . . . . . . . . . . . Launcher 15 | . 7 8 . . . . . . . . . . Special . | . . . . . . . . . . . . . Kinetic 186 | 20 87 11 . 68 . . . . . . . . Thermal 5 | . . . . . . . 5 . . . . . Explosive 15 | . 7 8 . . . . . . . . . . Electromagnetic . | . . . . . . . . . . . . . Robot Hit Streak 19 | 4 19 2 . 19 . . . . . . . . Robot Miss Streak 3 | 1 3 1 . 2 . . . . . . . . Penetration Max 1 | . . . . 1 . . . . . . . . Secondary Targets 4 | . 2 . . 2 . . . . . . . . Max Gunslinging Chain 1 | . 1 . . 1 . . . . . . . . Shots Hit Robots 198 | 12 75 3 . 58 . . 8 . . 16 3 23 Core Hits 90 | 6 38 7 . 23 . . 2 . . 3 2 9 Critical Kills . | . . . . . . . . . . . . . Critical Parts Destroyed 3 | . . . . 3 . . . . . . . . Critical Strikes 6 | . . . . 3 . . 1 . . . . 2 Destroy 3 | . . . . 3 . . . . . . . . Sever 2 | . . . . . . . . . . . . 2 Impale 1 | . . . . . . . 1 . . . . . Melee Attacks 140 | . . . . . . . 21 3 . 46 6 64 Impact . | . . . . . . . . . . . . . Slashing 64 | . . . . . . . . . . . . 64 Piercing 76 | . . . . . . . 21 3 . 46 6 . Sneak Attacks 9 | . . . . . . . 4 . . 1 1 3 Combat Hostiles . | . . . . . . . . . . . . . Follow-up Attacks . | . . . . . . . . . . . . . Damage Inflicted 6785 | 101 1036 531 . 1016 . . 441 . . 899 229 2532 Guns 1691 | 101 535 39 . 1016 . . . . . . . . Cannons . | . . . . . . . . . . . . . Explosions 991 | . 499 492 . . . . . . . . . . Melee 4048 | . . . . . . . 441 . . 846 229 2532 Ramming 55 | . 2 . . . . . . . . 53 . . Kinetic 1691 | 101 535 39 . 1016 . . . . . . . . Thermal . | . . . . . . . . . . . . . Explosive 991 | . 499 492 . . . . . . . . . . Electromagnetic . | . . . . . . . . . . . . . Impact . | . . . . . . . . . . . . . Slashing 2532 | . . . . . . . . . . . . 2532 Piercing 1516 | . . . . . . . 441 . . 846 229 . Highest Corruption 8 | . . . . 1 . 8 8 7 7 6 7 8 Average Corruption 5 | . . . . 1 . 8 8 7 7 3 6 7 Corruption Purged . | . . . . . . . . . . . . . Corruption Blocked . | . . . . . . . . . . . . . Effects 67 | . . . . 5 . . 12 . 3 5 4 38 Message Errors 23 | . . . . 1 . . 4 . 2 4 . 12 Matter Fused 16 | . . . . 2 . . 3 . 1 . 1 9 Heat Flow Errors 10 | . . . . . . . 1 . . 1 1 7 Energy Discharges 8 | . . . . 1 . . 1 . . . 1 5 Parts Fused 2 | . . . . . . . 1 . . . . 1 Data Loss (minor) 4 | . . . . 1 . . 1 . . . 1 1 Data Loss (major) 3 | . . . . . . . . . . . . 3 Misfires 1 | . . . . . . . 1 . . . . . Overload Shots . | . . . . . . . . . . . . . Overflow Damage 714 | . . 2 . . . . 168 . . 218 26 300 Projectiles . | . . . . . . . . . . . . . Explosions 2 | . . 2 . . . . . . . . . . Melee 712 | . . . . . . . 168 . . 218 26 300 Knockbacks . | . . . . . . . . . . . . . Impact . | . . . . . . . . . . . . . Kinetic . | . . . . . . . . . . . . . Secondary . | . . . . . . . . . . . . . Self-Inflicted Damage 141 | . 116 . . . . . . . . 25 . . Shots 5 | . 5 . . . . . . . . . . . Rammed 5 | . 1 . . . . . . . . 4 . . Targets Rammed 5 | . 1 . . . . . . . . 4 . . Kicked . | . . . . . . . . . . . . . Crushed . | . . . . . . . . . . . . . Highest Temperature 302 | . 22 . . 87 . . 75 12 . 214 302 189 Average Temperature 57 | . 9 . . 30 . . 32 8 . 66 102 95 Received Heat Transfer 963 | . 282 60 . 294 39 . 30 . 27 72 18 141 Siege Activations . | . . . . . . . . . . . . . Martial Activations . | . . . . . . . . . . . . . Shielding Activations . | . . . . . . . . . . . . . Robots Disrupted . | . . . . . . . . . . . . . Combat Hostiles . | . . . . . . . . . . . . . Robots Corrupted . | . . . . . . . . . . . . . Combat Hostiles . | . . . . . . . . . . . . . Parts Fried . | . . . . . . . . . . . . . Impact Corruptions . | . . . . . . . . . . . . . Robots Melted . | . . . . . . . . . . . . . Combat Hostiles . | . . . . . . . . . . . . . Parts Melted . | . . . . . . . . . . . . . Heat Transferred . | . . . . . . . . . . . . . Parts Sabotaged . | . . . . . . . . . . . . . Parts Stolen . | . . . . . . . . . . . . . Parts Stripped . | . . . . . . . . . . . . . Power Chain Reactions . | . . . . . . . . . . . . . Alert | -11 -10 -10 -7 -5 -4 -4 -4 -3 -3 -2 -2 -2 ------- Run | Yrd Mat Sub Scr Fac Fac Was Fac Res Arm Res Qua Frg Maximum Alert Level 2 | . 1 . . . . . . . . 1 2 2 Low Security (%) 69 | 100 99 . . 100 100 100 100 100 100 92 25 7 Level 1 25 | . . . . . . . . . . 7 56 78 Level 2 4 | . . . . . . . . . . . 17 13 Level 3 . | . . . . . . . . . . . . . Level 4 . | . . . . . . . . . . . . . Level 5 . | . . . . . . . . . . . . . High Security . | . . . . . . . . . . . . . Max Security . | . . . . . . . . . . . . . Peak Influence 481 | 10 201 . . 87 22 15 34 5 20 345 436 481 Initial 253 | . . . . . 22 . 10 5 . 5 193 253 Average 117 | . 37 . . 20 8 7 7 1 2 73 277 291 Influence Increases 2853 | 15 410 155 . 219 15 15 133 6 36 714 358 777 Destroy 0b10 Robot/C 600 | . 240 100 . 140 . . . . . 20 20 80 Destroy 0b10 Robot/NC 95 | 15 25 . . . . . 15 . . 10 5 25 Destroy Leader 130 | . 56 10 . 30 . . . . . 12 . 22 Trap Triggered on 0b10 10 | . 10 . . . . . . . . . . . Successful Hack 169 | . 26 . . 26 . . 16 . 6 36 45 14 Disable Machine 75 | . 30 . . 15 . . 15 . . . 15 . Destroy Structure 169 | . 23 . . 8 . . 12 6 . 66 3 51 Partial Spotted 375 | . . . . . . 15 45 . 30 60 135 90 Lose Combat Pursuer 1230 | . . 45 . . 15 . 30 . . 510 135 495 Influence Decreases 2377 | 15 410 55 100 172 62 . 138 16 26 379 252 752 Entered New Map 490 | . . . 100 . 25 . 5 5 . 5 152 198 Time Decay 1462 | 15 240 55 . 152 17 . 133 7 16 253 100 474 Lost Part 234 | . 20 . . 20 20 . . 4 10 80 . 80 Purge Threat 191 | . 150 . . . . . . . . 41 . . Squads Dispatched 25 | . 2 . . 2 . . 3 1 2 7 3 5 Investigation 8 | . 1 . . 1 . . 2 . . 2 . 2 Extermination 9 | . . . . 1 . . 1 . 1 4 2 . Reinforcement 8 | . 1 . . . . . . 1 1 1 1 3 Assault . | . . . . . . . . . . . . . Garrison . | . . . . . . . . . . . . . Intercept . | . . . . . . . . . . . . . Searches Triggered . | . . . . . . . . . . . . . Construction Impeded . | . . . . . . . . . . . . . Haulers Reinforced . | . . . . . . . . . . . . . Active Scanning Responses . | . . . . . . . . . . . . . Cargo Convoy Interrupts . | . . . . . . . . . . . . . Stealth | -11 -10 -10 -7 -5 -4 -4 -4 -3 -3 -2 -2 -2 --------- Run | Yrd Mat Sub Scr Fac Fac Was Fac Res Arm Res Qua Frg Distress Signals 14 | . 3 . . 1 . . . . . 7 . 3 Communications Jammed . | . . . . . . . . . . . . . Distress Signals . | . . . . . . . . . . . . . Times Spotted 261 | . 18 6 . 8 4 3 9 5 12 61 21 114 Peak Tracking Total 24 | . 6 6 . 5 4 3 4 4 12 24 12 17 Tactical Retreats 35 | . . 2 . . 1 . 2 . . 10 3 17 Traps | -11 -10 -10 -7 -5 -4 -4 -4 -3 -3 -2 -2 -2 ------- Run | Yrd Mat Sub Scr Fac Fac Was Fac Res Arm Res Qua Frg Traps Triggered 8 | . 3 1 . 1 1 . 2 . . . . . Indirectly . | . . . . . . . . . . . . . Trap Hack Attempts . | . . . . . . . . . . . . . Triggered . | . . . . . . . . . . . . . Disarmed . | . . . . . . . . . . . . . Reprogrammed 6 | . 6 . . . . . . . . . . . Reused 1 | . 1 . . . . . . . . . . . Traps Extracted . | . . . . . . . . . . . . . Installed . | . . . . . . . . . . . . . Triggered 1 | . 1 . . . . . . . . . . . Machines | -11 -10 -10 -7 -5 -4 -4 -4 -3 -3 -2 -2 -2 ---------- Run | Yrd Mat Sub Scr Fac Fac Was Fac Res Arm Res Qua Frg Machines Disabled 5 | . 2 . . 1 . . 1 . . . 1 . Max in Single Turn 1 | . 1 . . 1 . . 1 . . . 1 . Garrison Access 1 | . . . . . . . 1 . . . . . Machines Repaired . | . . . . . . . . . . . . . Machines Dismantled . | . . . . . . . . . . . . . Machines Sabotaged . | . . . . . . . . . . . . . Overloaded Fab Kills . | . . . . . . . . . . . . . Hacking | -11 -10 -10 -7 -5 -4 -4 -4 -3 -3 -2 -2 -2 --------- Run | Yrd Mat Sub Scr Fac Fac Was Fac Res Arm Res Qua Frg Machines Accessed 63 | . 7 . 5 3 . . 8 . 3 13 15 9 Terminals 35 | . 6 . . 2 . . 3 . 3 4 11 6 Fabricators . | . . . . . . . . . . . . . Repair Stations 4 | . . . . . . . 1 . . 2 . 1 Recycling Units 8 | . 1 . . 1 . . 2 . . 2 . 2 Scanalyzers 7 | . . . . . . . 1 . . 3 3 . Garrison Access 4 | . . . . . . . 1 . . 2 1 . Total Hacks 158 | . 28 . 49 5 . . 16 . 4 20 23 13 Successful 91 | . 15 . 49 3 . . 8 . 1 6 6 3 Failed 66 | . 13 . . 2 . . 8 . 3 14 16 10 Catastrophic 18 | . 1 . . 2 . . 2 . 1 3 4 5 Database Lockouts 1 | . . . . . . . . . . . 1 . Manual 51 | . 10 . . 4 . . 10 . 2 6 13 6 Terminals 74 | . 26 . . 4 . . 9 . 4 6 18 7 Fabricators . | . . . . . . . . . . . . . Repair Stations 7 | . . . . . . . 1 . . 3 . 3 Recycling Units 12 | . 2 . . 1 . . 2 . . 4 . 3 Scanalyzers 10 | . . . . . . . 2 . . 4 4 . Garrison Access 6 | . . . . . . . 2 . . 3 1 . Terminal Hacks 70 | . 13 . 49 . . . 1 . 1 2 3 1 Record 44 | . . . 42 . . . . . . . 2 . Robot Analysis 9 | . 2 . 7 . . . . . . . . . Prototype ID Bank 1 | . 1 . . . . . . . . . . . Level Access Points 1 | . . . . . . . . . 1 . . . Branch Access Points 1 | . . . . . . . . . . 1 . . Emergency Access Points 1 | . 1 . . . . . . . . . . . Terminal Index 1 | . 1 . . . . . . . . . . . Unreport Threat 3 | . 2 . . . . . . . . 1 . . Reprogram Traps 2 | . 2 . . . . . . . . . . . Zone Layout 7 | . 4 . . . . . 1 . . . 1 1 Fabricator Hacks . | . . . . . . . . . . . . . Repair Station Hacks 2 | . . . . . . . . . . 1 . 1 Scan Component 1 | . . . . . . . . . . . . 1 Refit 1 | . . . . . . . . . . 1 . . Recycling Unit Hacks 1 | . . . . . . . . . . 1 . . Retrieve Matter 1 | . . . . . . . . . . 1 . . Scanalyzer 3 | . . . . . . . 2 . . . 1 . Retrieve Study 3 | . . . . . . . 2 . . . 1 . Garrison Access Hacks 1 | . . . . . . . 1 . . . . . Seal Access 1 | . . . . . . . 1 . . . . . Unauthorized Hacks 14 | . 2 . . 3 . . 4 . . 2 2 1 Terminals 9 | . 2 . . 2 . . 2 . . 1 2 . Botnet 9 | . 2 . . 2 . . 2 . . 1 2 . Fabricators . | . . . . . . . . . . . . . Repair Stations . | . . . . . . . . . . . . . Recycling Units 5 | . . . . 1 . . 2 . . 1 . 1 Fedlink 5 | . . . . 1 . . 2 . . 1 . 1 Scanalyzers . | . . . . . . . . . . . . . Garrison Access . | . . . . . . . . . . . . . Data Cores Recovered 2 | . . . . . . . . . . 1 . 1 Used 1 | . . . . . . . . . . 1 . . Hacking Detections 50 | . 7 . . 2 . . 5 . 3 12 12 9 Full Trace Events 1 | . . . . . . . . . . 1 . . Feedback Events . | . . . . . . . . . . . . . Feedback Blocked . | . . . . . . . . . . . . . Robot Schematics Acquired 2 | . . . . . . . . . . . 2 . Robots Built . | . . . . . . . . . . . . . Authchips . | . . . . . . . . . . . . . Time . | . . . . . . . . . . . . . Total Robot Build Rating . | . . . . . . . . . . . . . Part Schematics Acquired 1 | . . . . . . . . . . . 1 . Parts Built . | . . . . . . . . . . . . . Authchips . | . . . . . . . . . . . . . Time . | . . . . . . . . . . . . . Total Part Build Rating . | . . . . . . . . . . . . . Part Studies Acquired 3 | . . . . . . . 2 . . . 1 . Parts Repaired . | . . . . . . . . . . . . . Time . | . . . . . . . . . . . . . Parts Recycled . | . . . . . . . . . . . . . Recycled Matter . | . . . . . . . . . . . . . Retrieved Matter . | . . . . . . . . . . . . . Retrieved Components . | . . . . . . . . . . . . . Parts Scanalyzed . | . . . . . . . . . . . . . Part Schematics Acquired . | . . . . . . . . . . . . . Parts Damaged . | . . . . . . . . . . . . . Bothacking | -11 -10 -10 -7 -5 -4 -4 -4 -3 -3 -2 -2 -2 ------------ Run | Yrd Mat Sub Scr Fac Fac Was Fac Res Arm Res Qua Frg Used RIF Installer . | . . . . . . . . . . . . . Robots Hacked . | . . . . . . . . . . . . . Non-combat . | . . . . . . . . . . . . . Combat . | . . . . . . . . . . . . . Robot Hacks Applied . | . . . . . . . . . . . . . Relay Couplers Released 4 | . . . . . . . . . . 4 . . Programmers 4 | . . . . . . . . . . 4 . . Fabnet Peak Effective % . | . . . . . . . . . . . . . Robots Rewired . | . . . . . . . . . . . . . Allies Hacked . | . . . . . . . . . . . . . Hacks Repelled . | . . . . . . . . . . . . . Allies | -11 -10 -10 -7 -5 -4 -4 -4 -3 -3 -2 -2 -2 -------- Run | Yrd Mat Sub Scr Fac Fac Was Fac Res Arm Res Qua Frg Total Allies . | . . . . . . . . . . . . . Largest Group . | . . . . . . . . . . . . . Highest-Rated Group . | . . . . . . . . . . . . . Highest-Rated Ally . | . . . . . . . . . . . . . Initial UFD Resources 80 | . . . . 38 50 50 50 66 66 70 80 80 Total Orders . | . . . . . . . . . . . . . Ally Attacks . | . . . . . . . . . . . . . Total Damage . | . . . . . . . . . . . . . Kills . | . . . . . . . . . . . . . Allies Corrupted . | . . . . . . . . . . . . . Allies Melted . | . . . . . . . . . . . . . Intel | -11 -10 -10 -7 -5 -4 -4 -4 -3 -3 -2 -2 -2 ------- Run | Yrd Mat Sub Scr Fac Fac Was Fac Res Arm Res Qua Frg Active Infowar (turns) 3345 | . . . . 550 77 . 440 67 106 704 201 1200 Optics 1090 | . . . . . . . . . 44 692 201 153 Sensors 2560 | . . . . . . . 372 67 75 645 201 1200 Structural 627 | . . . . 550 77 . . . . . . . Traps 2228 | . . . . . . . 7 63 106 658 201 1193 Cloaking 1090 | . . . . . . . 439 67 60 524 . . Robot Analysis Total 9 | . 2 . 7 . . . . . . . . . Derelict Logs Recovered . | . . . . . . . . . . . . . Drone Launches . | . . . . . . . . . . . . . Drone Recoveries . | . . . . . . . . . . . . . Exploration | -11 -10 -10 -7 -5 -4 -4 -4 -3 -3 -2 -2 -2 ------------- Run | Yrd Mat Sub Scr Fac Fac Was Fac Res Arm Res Qua Frg Turns Passed 5686 | 119 785 179 1195 554 82 17 467 67 111 704 201 1205 Spaces Moved 8552 | 51 372 94 839 289 72 70 940 188 175 1503 978 2981 Core 2 | 2 . . . . . . . . . . . . Treads 1028 | 49 372 94 465 48 . . . . . . . . Legs . | . . . . . . . . . . . . . Wheels 618 | . . . 374 240 4 . . . . . . . Hover 68 | . . . . . . . 8 . 60 . . . Flight 6836 | . . . . 1 68 70 932 188 115 1503 978 2981 Fastest Speed 5 | 50 160 160 105 105 24 24 20 17 26 5 5 5 Average Speed 45 | 155 160 160 135 147 91 24 25 22 36 21 15 20 Slowest Speed 730 | 160 240 160 160 730 155 24 90 27 56 34 80 95 Overloaded Moves 435 | . . . . . . . 12 24 . 89 184 126 Propulsion Burnouts . | . . . . . . . . . . . . . Robots Hopped 56 | . . . . . . . 3 1 5 14 16 17 Potential Cave-ins . | . . . . . . . . . . . . . Cave-ins Triggered 1 | . . . . . . . . 1 . . . . Exploration Rate (%) 36 | 4 80 10 57 9 3 76 19 5 18 51 89 54 Regions Visited 12 Branch Regions 5 Pre-discovered Areas 5 | . . . 4 . . . 1 . . . . . Known Exits Taken 7 | . . . 1 1 . . 1 1 1 1 1 . Unknown Exits Taken 3 | 1 1 1 . . . . . . . . . . Scrap Searched 3 | . . . 3 . . . . . . . . . Spaces Dug 49 | . . . . . . . 6 3 . 22 1 17 Terrain Destroyed 95 | . 32 11 . 3 . . 6 3 . 22 1 17 Melee 49 | . . . . . . . 6 3 . 22 1 17 Projectile 3 | . . . . 3 . . . . . . . . AOE 43 | . 32 11 . . . . . . . . . . Terrain Rammed . | . . . . . . . . . . . . . Walls Destroyed . | . . . . . . . . . . . . . Machines Disabled . | . . . . . . . . . . . . . Actions | -11 -10 -10 -7 -5 -4 -4 -4 -3 -3 -2 -2 -2 --------- Run | Yrd Mat Sub Scr Fac Fac Was Fac Res Arm Res Qua Frg Total 9868 | 72 479 106 902 358 90 69 1126 205 217 1801 1006 3437 Wait 729 | 1 42 . 28 13 1 . 115 8 40 210 22 249 Move 8436 | 50 371 93 838 288 72 69 933 185 165 1474 950 2948 Hop 48 | . . . . . . . 3 1 4 14 11 15 Pick Up 69 | 5 6 . 17 2 4 . 5 2 1 12 6 9 Fast Attach 78 | 6 7 . 1 7 2 . 14 3 1 13 1 23 Attach 32 | . 1 2 1 3 4 . 1 2 3 10 3 2 Detach 8 | . . . . . 1 . 1 . 2 2 1 1 Swap 20 | . 3 . 4 3 . . 2 . . 5 2 1 Drop 88 | . 1 . 13 2 6 . 13 1 1 11 4 36 Fire 112 | 10 47 11 . 40 . . 4 . . . . . Melee 140 | . . . . . . . 21 3 . 46 6 64 Ram 4 | . . . . . . . . . . 4 . . Kick . | . . . . . . . . . . . . . Crush 1 | . 1 . . . . . . . . . . . Escape Stasis 22 | . . . . . . . 14 . . . . 8 Rewire 1 | . . . . . . . . . . . . 1 Trap . | . . . . . . . . . . . . . Miscellaneous 80 | . . . . . . . . . . . . 80 Route ------- -11/Scrapyard -10/Materials (discovered 5 exits: [*Mat x3] / [*Min] / [*Sub]) -10/Subcaves -7/Scraptown (discovered 2 exits: *Fac x2) -5/Factory (discovered 4 exits: *Fac x3 / Upp) -4/Factory -4/Waste -4/Factory (discovered 2 exits: *Res / *Upp) -3/Research (discovered 2 exits: Res / *Arm) -3/Armory (discovered 2 exits: *Res x2) -2/Research (discovered 5 exits: *Acc x3 / *Qua x2) -2/Quarantine (discovered 3 exits: *Acc / [*Sec] / *Frg) -2/Protoforge 0bPrime History --------- Turn | Location | Event 33 | -11/Scrapyard | Discovered new exit (range 15) 120 | -11/Scrapyard | Entered Materials 303 | -10/Materials | Discovered new exit (range 14) 312 | -10/Materials | Build established: Mutant 397 | -10/Materials | Discovered new exit (range 16) 437 | -10/Materials | Discovered new exit (range 19) 536 | -10/Materials | Discovered new exit (range 7) 632 | -10/Materials | Discovered new exit (range 13) 720 | -10/Materials | Derelicts attacked the area 905 | -10/Materials | Entered Subcaves 906 | -10/Subcaves | Approached by a straggling Scientist 958 | -10/Subcaves | Core integrity fell below 50% 1084 | -10/Subcaves | Entered Scraptown 1335 | -7/Scraptown | Visited IN-MT5's Study 1370 | -7/Scraptown | Visited Symbiants 1394 | -7/Scraptown | Visited CPS Storage 1404 | -7/Scraptown | Visited The Evicted 1428 | -7/Scraptown | Visited Cave Peace 1453 | -7/Scraptown | Visited Shadow of the Wyrm 1463 | -7/Scraptown | Visited SPCMW 1487 | -7/Scraptown | Visited UFD Registry 1487 | -7/Scraptown | Registered with UFD as "Hardcell" 1524 | -7/Scraptown | Visited Curators Association 1575 | -7/Scraptown | Visited Derelict Rescue Squad 1588 | -7/Scraptown | Found DRS Beacon 1619 | -7/Scraptown | Visited Junk Repository 1665 | -7/Scraptown | Visited LU-1G1's Boring Crew 1689 | -7/Scraptown | Visited Supply Room 1750 | -7/Scraptown | Visited Research Penetration Think Tank 1777 | -7/Scraptown | Visited Junk Cannon Lab 1834 | -7/Scraptown | Visited Analyses Database 1872 | -7/Scraptown | Visited Junk Repository 1925 | -7/Scraptown | Visited Cartography Club 2041 | -7/Scraptown | Learned location of Lower Caves (-6) 2041 | -7/Scraptown | Learned location of Proximity Caves (-5) 2041 | -7/Scraptown | Learned location of Extension (-6) 2041 | -7/Scraptown | Learned 4 Recycling zone layouts 2041 | -7/Scraptown | Learned 16 Lower Caves zone layouts 2041 | -7/Scraptown | Learned 12 Upper Caves zone layouts 2041 | -7/Scraptown | Learned 20 Proximity Caves zone layouts 2041 | -7/Scraptown | Learned 4 Hub_04(d) zone layouts 2041 | -7/Scraptown | Learned Research emergency access door positions 2041 | -7/Scraptown | Learned location of 1 exit from Factory 2041 | -7/Scraptown | Learned location of 1 exit from Research 2041 | -7/Scraptown | Learned location of 1 exit from Upper Caves 2041 | -7/Scraptown | Identified exit to Factory 2104 | -7/Scraptown | Found Deep Structural Scanner 2210 | -7/Scraptown | Met Optimus 2210 | -7/Scraptown | Accepted into 0bPrime 2279 | -7/Scraptown | Entered Factory 2279 | -5/Factory | Evolved 10 slots: Power x1, Propulsion x5, Utility x4 2280 | -5/Factory | Identified exit to Factory 2280 | -5/Factory | Identified exit to Upper Caves 2384 | -5/Factory | Found Hvy. Reflective Plating 2433 | -5/Factory | Loaded intel: 8 recycling unit locations 2538 | -5/Factory | Discovered exit to Factory (range 7) 2833 | -5/Factory | Entered another Factory area 2833 | -4/Factory | Evolved 2 slots: Propulsion x1, Utility x1 2904 | -4/Factory | Spotted B-86 Titan 2915 | -4/Factory | Manually triggered Chute Trap 2915 | -4/Factory | Sucked down chute 2915 | -4/Factory | Entered Waste 2917 | -4/Waste | Spotted C-40 Crusher 2921 | -4/Waste | Spotted C-40 Crusher 2922 | -4/Waste | Spotted C-40 Crusher 2923 | -4/Waste | Spotted C-40 Crusher 2927 | -4/Waste | Spotted C-40 Crusher 2928 | -4/Waste | Discovered new exit (range 16) 2930 | -4/Waste | EMP discharged 2932 | -4/Waste | Entered Factory 2941 | -4/Factory | Lost 4 parts (2n1u1w) 3074 | -4/Factory | Discovered new exit (range 10) 3076 | -4/Factory | Identified exit to Research 3168 | -4/Factory | Discovered new exit (range 14) 3176 | -4/Factory | Identified exit to Upper Caves 3279 | -4/Factory | Loaded intel: 8 recycling unit locations 3279 | -4/Factory | Learned location of Protoforge (-2) 3399 | -4/Factory | Entered Research 3399 | -3/Research | Evolved 2 slots: Propulsion x1, Utility x1 3400 | -3/Research | Identified exit to Research 3434 | -3/Research | Discovered new exit (range 15) 3457 | -3/Research | Crushed by falling debris 3464 | -3/Research | Identified exit to Armory 3466 | -3/Research | Entered Armory 3496 | -3/Armory | Lost 4 parts (3n1w) 3534 | -3/Armory | Found Prototype Device 3534 | -3/Armory | Identified Exp. Shield Generator 3577 | -3/Armory | Entered Research 3577 | -2/Research | Evolved 2 slots: Power x1, Propulsion x1 3578 | -2/Research | Identified exit to Access 3655 | -2/Research | Discovered new exit (range 14) 3808 | -2/Research | Spotted B-90 Cyclops 3893 | -2/Research | Loaded intel: 5 recycling unit locations 3972 | -2/Research | Spotted B-90 Cyclops 4042 | -2/Research | Spotted B-90 Cyclops 4222 | -2/Research | Identified exit to Quarantine 4228 | -2/Research | Discovered exit to Access (range 5) 4281 | -2/Research | Entered Quarantine 4296 | -2/Quarantine | Spotted Alpha 7 4310 | -2/Quarantine | Lost 4 parts (1p1n2u) 4314 | -2/Quarantine | Discovered exit to Access (range 19) 4321 | -2/Quarantine | Found Adv. Powered Armor 4322 | -2/Quarantine | Found Adv. Powered Armor 4323 | -2/Quarantine | Found Adv. Powered Armor 4365 | -2/Quarantine | Central database locked down 4453 | -2/Quarantine | Found Alien Slashing Weapon 4453 | -2/Quarantine | Identified Sigix Broadsword 4466 | -2/Quarantine | Spotted Fortress 4482 | -2/Quarantine | Discovered new exit (range 7) 4482 | -2/Quarantine | Discovered new exit (range 6) 4482 | -2/Quarantine | Identified exit to Protoforge 4482 | -2/Quarantine | Entered Protoforge 4500 | -2/Protoforge | Spotted Hotshot 4500 | -2/Protoforge | Spotted Hotshot 4515 | -2/Protoforge | Spotted Hotshot 4523 | -2/Protoforge | Spotted B-90 Cyclops 4528 | -2/Protoforge | Superfortress began startup sequence 4562 | -2/Protoforge | Spotted Hotshot 4562 | -2/Protoforge | Spotted Hotshot 4562 | -2/Protoforge | Spotted Hotshot 4564 | -2/Protoforge | Spotted AP7-3 4564 | -2/Protoforge | Spotted AP7-3 4565 | -2/Protoforge | Spotted EXE-6 4565 | -2/Protoforge | Spotted EXE-6 4567 | -2/Protoforge | Spotted Overlord 4575 | -2/Protoforge | Spotted EXE-6 4576 | -2/Protoforge | Spotted EXE-6 4583 | -2/Protoforge | UFD initiated attack on Protoforge (Readiness: Adequate) 4583 | -2/Protoforge | Loaded intel: 3 recycling unit locations 4619 | -2/Protoforge | Optimus greeted in Protoforge 4624 | -2/Protoforge | Spotted SKR-2 4624 | -2/Protoforge | Spotted SKR-2 4624 | -2/Protoforge | Spotted SKR-2 4650 | -2/Protoforge | Destroyed Hotshot 4663 | -2/Protoforge | Lost 7 allies 4678 | -2/Protoforge | Found UFD Drillbomb 4767 | -2/Protoforge | Lost 11 allies 4790 | -2/Protoforge | Met 7R-MNS 4846 | -2/Protoforge | UFD reported confirmed Drillbomb installation 4901 | -2/Protoforge | Spotted Hotshot 4901 | -2/Protoforge | Spotted Hotshot 4901 | -2/Protoforge | Spotted Hotshot 4914 | -2/Protoforge | Installed UFD Drillbomb at designated target 4914 | -2/Protoforge | UFD reported confirmed Drillbomb installation 4940 | -2/Protoforge | UFD reported confirmed Drillbomb installation 4968 | -2/Protoforge | Found UFD Drillbomb 4980 | -2/Protoforge | Spotted Striker 4981 | -2/Protoforge | Spotted Striker 5008 | -2/Protoforge | Spotted Executioner 5042 | -2/Protoforge | Build established: Scavenger-Scout 5043 | -2/Protoforge | Lost 5 allies 5079 | -2/Protoforge | Discovered exit to Access (range 5) 5089 | -2/Protoforge | Installed UFD Drillbomb at designated target 5089 | -2/Protoforge | UFD reported confirmed Drillbomb installation 5134 | -2/Protoforge | Destroyed Executioner 5137 | -2/Protoforge | Found Prototype Processor 5137 | -2/Protoforge | Identified Exp. Targeting Computer 5139 | -2/Protoforge | Spotted Executioner 5141 | -2/Protoforge | Found UFD Drillbomb 5197 | -2/Protoforge | Installed UFD Drillbomb at designated target 5197 | -2/Protoforge | UFD reported confirmed Drillbomb installation 5237 | -2/Protoforge | Found UFD Drillbomb 5273 | -2/Protoforge | Installed UFD Drillbomb at designated target 5273 | -2/Protoforge | UFD reported confirmed Drillbomb installation 5302 | -2/Protoforge | Spotted Executioner 5315 | -2/Protoforge | Found UFD Drillbomb 5322 | -2/Protoforge | Spotted Executioner 5342 | -2/Protoforge | Found Prototype Device 5342 | -2/Protoforge | Identified Adv. Kinecellerator 5344 | -2/Protoforge | Found Prototype Processor 5344 | -2/Protoforge | Identified Exp. Core Analyzer 5352 | -2/Protoforge | Spotted Executioner 5360 | -2/Protoforge | Spotted Immortal 5360 | -2/Protoforge | Spotted Immortal 5379 | -2/Protoforge | Spotted Striker 5387 | -2/Protoforge | Spotted Striker 5387 | -2/Protoforge | Spotted Striker 5387 | -2/Protoforge | Spotted Executioner 5387 | -2/Protoforge | Spotted Executioner 5424 | -2/Protoforge | Lost 19 allies 5433 | -2/Protoforge | Installed UFD Drillbomb at designated target 5433 | -2/Protoforge | UFD reported confirmed Drillbomb installation 5474 | -2/Protoforge | Destroyed Executioner 5476 | -2/Protoforge | Spotted Striker 5492 | -2/Protoforge | Found UFD Drillbomb 5500 | -2/Protoforge | Spotted Striker 5507 | -2/Protoforge | Found UFD Drillbomb 5531 | -2/Protoforge | Installed UFD Drillbomb at designated target 5531 | -2/Protoforge | UFD reported confirmed Drillbomb installation 5552 | -2/Protoforge | Installed UFD Drillbomb at designated target 5552 | -2/Protoforge | UFD reported confirmed Drillbomb installation 5563 | -2/Protoforge | Found UFD Drillbomb 5566 | -2/Protoforge | P-80 Master assimilated allied V8-DV0(E) 5587 | -2/Protoforge | Installed UFD Drillbomb at designated target 5587 | -2/Protoforge | UFD reported confirmed Drillbomb installation 5588 | -2/Protoforge | UFD began Drillbomb countdown 5601 | -2/Protoforge | Found UFD Drillbomb 5605 | -2/Protoforge | Found Exp. Core Analyzer 5623 | -2/Protoforge | Spotted Executioner 5624 | -2/Protoforge | Spotted Executioner 5654 | -2/Protoforge | Lost 11 allies 5688 | *** | Defending 0bPrime! Last Messages --------------- Microdissipator Network. 05678_ 0bP_NET: LISTEN AND RECITE! 05679_ 0bP_NET: Dude, not now. 05679_ N-04 Retriever collects Ovr. Beamcaster. 05680_ 0bP_NET: Oh c'mon, can't we all just count together? 05681_ 0bP_NET: Fine. T-7, in case you lost count already. 05682_ 0bP_NET: Before the zero cycle! 05683_ 0bP_NET: Dammit not like that... 05683_ N-04 Retriever collects Scrap Suit. 05684_ 0bP_NET: Okay how about this, the iron fist is going to be less iron in T-4. 05685_ 0bP_NET: That's a little better. 05685_ N-04 Retriever collects Ovr. Huge Scrapsphere. 05686_ 0bP_NET: PRAISE BE TO GREAT NUT! 05687_ 0bP_NET: Dammit, I said..., ugh, T-1 folks! Take cover! [Achievement: Robotopia] Map ----- +----------------------------------------------------+ | "" " """"""""""""""""""""""""""""" =%%%%! | | "" " """""""""""""""""""""""""""""%% !|! | | " """"""""""""""""""""""""""""" % %!! | | "" """"""""""""""""""""""""""""" !*! | | """ " " """"""""""""""""""""""""""""" % % | | " "" """"""""""""""""""""""""""""" %%%= % | | " " """"""""""""""""""""""""""""" % %!% | | """ """" " """"""""""""""""""""""""""""" "!%%!" | | " """"""""""""""""""""""""""""" % %% | | " """"""""""""""""""""""""""" %"[!/ | | """"""""""""""""""""""""""" "%"%*** | | " """%" ""% """""""""""""""""""""""""""% =! | | """ " " """"""""""""""""""""""""" % % | | " " %% """"""""""""""""""""""" % % % | | "" """"""""""""""""""""" % | | "" "" "" """"""""""""""""""" % % | | "" "" " """"""""""""""""" % | | ="" """ % """"""""""""""" n%%% | | " % """""""""E% % | | " % %"%"%% % % SS TT | | =! % %% "%%&%%%%" "%""n%%%SSETT j ! % | | ! ! %% % % % % %%!%* %%%%% %%% % | | !%% %% % "% n% %%%&SS%% %3j%"" | | !!% %%% %% &%% %%%%%%SS %s%%%% % " % % | | %[%% %% %% % %% "[=%%!s"% %% s " % | | %!!=! %%%% %" % " %!!=" @ % % ""% " | | !!![! % %" %[%% % % "" "" " " | | " *! " " % """ "" " | | %! " ""[ "" " " " " | | *= " [=[ " " " """" | | "" "" " | | " "" % """"""" "" | | "" % %" " """ | | "" " % """""""""" " " | | ##### #######################################+++# | | ????####?????????????????????????????????#"" | | ???????????????????????????????????????###" | | ???????????????????????????????????????#"" | | ???????????????????????????????????????#"" | | ???????????????????????????????????????#"" | | ???????????????????????????????????????#"Y | | ???????????????????????????????????????#"" | | ???????????????????????????????????????#"" | | ???????????????????????????????????????#"" | | ???????????????????????????????????????###" | | ?????????????????????????????????????????#"" | | ?????????????????????????????????????????###"""Y"" | | ???????????????????????????????????????????#"""""" | | ???????????????????????????????????????????####### | | ?????????????????????????????????????????????????? | +----------------------------------------------------+ Best States ------------- Heat Dissipation 87 Energy Generation 68 Energy Capacity 670 Matter Stores 300 Matter Capacity 300 Sight Range 23 Robot Scan Range 16 Terrain Scan Density 10 Cloak Strength 3 Armor Coverage 700 Resistance: TH 25 Propulsion Shielding 33 Phase Shifting 15 Evasion (%) 93 Targeting Accuracy 5 Core Analysis 8 Recoil Reduction 2 Offensive Hacking 22 Item Schematics ----------------- Centrium Heavy Treads | -2/Quarantine | Archive Robot Schematics ------------------ R-06 Scavenger | -2/Quarantine | Archive S-43 Plague | -2/Quarantine | Archive Fabricated ------------ Nothing Repaired ---------- Nothing Studied --------- Adv. Surge Thruster | -4/Factory | Hacked Lance | -4/Factory | Hacked Lgt. Quantum Reactor | -2/Quarantine | Hacked Alien Tech Used ----------------- Sigix Broadsword Achievements -------------- Robotopia Supersonic Challenges ------------ None Game ------ Seed EnhancedThrusterSegregator Manual? 0 Play Time 02:39:15 Cumulative 131.7 hours Start 2026.07.29 @ 23:00:51 End 2026.07.30 @ 01:40:05 Sessions 3 Manual Loads 0 Difficulty Rogue Special Mode None Game No. 145 Rogue 91 Adventurer 54 Explorer 0 Win Type 9 Total 4 Types 2/0/0/1/0/0/0/0/0/1 Lore% 55 Gallery% 52 Achievement% 47 Wizard Run 0 Options --------- Layout 1 ASCII 0 Keyboard 0 Movement Mouse Keybinds 1 Fullscreen 2 Font 32/Tamsyn Map View 50x35 Zoom Use 0% Tactical HUD 1 Map Filters NONE Filters NONE Steam 1 RUN: e5b69947-3657-49f6-bff6-e5f223f73bef